Cogmind - Beta 13 @@@ ROGUE MODE // 2024.07.09 @ 12:22:18 Player: ThatBishHoly Result: Destroyed by G-47 Trooper with Particle Gun Performance ------------- Evolutions (3) 1500 Regions Visited (5) 1000 Robots Destroyed (47) 235 Value Destroyed (1489) 1489 Prototype IDs (3) 60 Alien Tech Used (0) 0 Bonus (0) 0 TOTAL SCORE: 4284 Bonus ------- None Cogmind --------- Core Integrity 0/700 Matter 136/300 Energy 99/100 System Corruption 3% Temperature Warning (344) Movement Core (200) Ox3 Location -7/Lower Caves Parts ------- > --- POWER (1) -------- (None) > --- PROPULSION (4) --- (None) > --- UTILITY (5) ------ Medium Storage Unit > --- WEAPON (3) ------- (None) > --- INVENTORY (10) --- Advanced Visual Processing Unit Core Analyzer Authchip [R/Combat] Authchip [Propulsion] Authchip [Armor] Remote Datajack Ripper Peak State ------------ > --- POWER ------------ Deuterium Engine > --- PROPULSION ------- Light Treads Armored Treads Armored Treads Armored Treads > --- UTILITY ---------- Medium Storage Unit Compact Battery Machine Analyzer Improved Sensor Array Improved Medium Armor Plating > --- WEAPON ----------- Plasma Cannon Cooled Particle Cannon Chainsword > --- INVENTORY -------- Advanced Visual Processing Unit Core Analyzer Hardened Medium Armor Plating Authchip [R/Combat] Authchip [Propulsion] Authchip [Armor] Plasma Cannon Plasma Cannon Remote Datajack Chainsword [Rating: 43] Favorites ----------- Power Light Nuclear Core Engine Heavy Ion Engine Power Core Light Nuclear Core Propulsion Improved Aluminum Leg Treads Light Treads Leg Improved Aluminum Leg Utility Medium Storage Unit Device Improved Sensor Array Storage Medium Storage Unit Processor Transport Network Coupler Protection Hardened Medium Armor Plating Weapon Improved Medium Laser Energy Gun Improved Medium Laser Energy Cannon Plasma Cannon Ballistic Gun Assault Rifle Ballistic Cannon Gauss Cannon Special Weapon Remote Datajack Slashing Weapon Chainsword Build | -11 -10 -9 -8 -7 -7 ------- Run | Yrd Mat Mat Mat Fac Low Slots Evolved 6 | . . 2 2 2 . Power . | . . . . . . Propulsion 2 | . . 1 1 . . Utility 3 | . . 1 1 1 . Weapon 1 | . . . . 1 . Parts Attached 61 | 6 8 10 13 21 3 Power 6 | 1 2 1 1 1 . Engine 4 | 1 1 1 . 1 . Core 2 | . 1 . 1 . . Reactor . | . . . . . . Propulsion 18 | 2 1 5 6 4 . Treads 9 | 2 1 2 . 4 . Leg 9 | . . 3 6 . . Wheel . | . . . . . . Hover . | . . . . . . Flight . | . . . . . . Utility 13 | 1 2 2 4 3 1 Device 1 | . . . 1 . . Storage 3 | 1 1 . 1 . . Processor 2 | . . 1 . 1 . Hackware . | . . . . . . Protection 7 | . 1 1 2 2 1 Artifact . | . . . . . . Weapon 24 | 2 3 2 2 13 2 Energy Gun 3 | . . 2 1 . . Energy Cannon 7 | . . . . 6 1 Ballistic Gun 8 | 2 3 . 1 2 . Ballistic Cannon 2 | . . . . 2 . Launcher . | . . . . . . Special Weapon 2 | . . . . 2 . Impact Weapon . | . . . . . . Slashing Weapon 2 | . . . . 1 1 Piercing Weapon . | . . . . . . Special Melee Weapon . | . . . . . . Unidentified Prototypes 3 | . . 2 . 1 . Parts Lost 17 | . . . 1 1 15 Power 2 | . . . 1 . 1 Propulsion 5 | . . . . 1 4 Utility 5 | . . . . . 5 Weapon 5 | . . . . . 5 Highest Loss Streak 15 | . . . 1 1 15 To Critical Strikes . | . . . . . . Average Slot Usage (%) 96 | . 94 96 99 96 92 Engine 4 | . 10 4 3 1 6 Core 4 | . 3 6 5 5 . Treads 15 | . 28 18 . 11 27 Leg 15 | . . 12 35 15 . Device 2 | . . . 2 7 5 Storage 14 | . 14 11 17 15 14 Processor 5 | . . 9 6 7 6 Protection 8 | . 8 11 9 7 6 Energy Gun 8 | . . 11 17 7 . Energy Cannon 1 | . . . . 2 13 Ballistic Gun 9 | . 28 10 . 3 . Ballistic Cannon 1 | . . . . 3 . Naked Turns . | . . . . . . Heaviest Build 52 | 11 20 27 33 45 52 Greatest Support 80 | 40 40 66 60 80 80 Greatest Overweight (x) 6 | . . 1 . 1 6 Average Overweight (x) . | . . . . . . Largest Inventory Capacity 10 | 8 10 10 10 10 10 Average Capacity 9 | 7 8 10 10 10 10 Most Carried 10 | 5 9 10 10 10 10 Average Carried 7 | . 4 8 9 8 9 Final Capacity 10 | 8 10 10 10 10 10 Final Carried 10 | . 8 10 9 10 7 Class Distribution -------------------- 76% | Mutant 23% | Skirmisher Dominant Class ---------------- Mutant | -10/Materials Mutant | -9/Materials Mutant | -8/Materials Skirmisher | -7/Factory Mutant | -7/Lower Caves Resources | -11 -10 -9 -8 -7 -7 ----------- Run | Yrd Mat Mat Mat Fac Low Matter Collected 1229 | 156 176 361 254 209 73 Remotely . | . . . . . . Salvage Created 1700 | . 336 577 459 255 73 Parts 90 | . 20 28 23 14 5 Haulers Intercepted 3 | . 1 2 . . . Recyclers Shooed 1 | . . . . 1 . Parts Field Recycled . | . . . . . . Retrieved Matter . | . . . . . . Parts Self-Destructed 6 | . . . . . 6 Prevented . | . . . . . . Kills | -11 -10 -9 -8 -7 -7 ------- Run | Yrd Mat Mat Mat Fac Low Combat Hostiles Destroyed 40 | . 8 12 11 6 3 Guns 31 | . 8 12 11 . . Cannons 7 | . . . . 4 3 AOE 1 | . . . . 1 . Classes Destroyed 10 | . 4 2 1 3 . Builder 1 | . 1 . . . . Hauler 3 | . 1 2 . . . Mechanic 1 | . . . . 1 . Operator 1 | . . . 1 . . Watcher 1 | . . 1 . . . Swarmer 12 | . 3 3 3 . 3 Grunt 14 | . 5 4 5 . . Sentry 10 | . . 5 3 2 . Hunter 2 | . . . . 2 . Programmer 2 | . . . . 2 . Best Kill Streak 4 | . 3 4 3 3 3 Combat Bots Only 3 | . 3 3 3 2 3 Max Kills in Single Turn 2 | . 2 1 1 2 1 Gunslinging 1 | . 1 . . . . Exploded 1 | . . . . 1 . Melee . | . . . . . . Uniques/NPCs Destroyed . | . . . . . . Combat | -11 -10 -9 -8 -7 -7 -------- Run | Yrd Mat Mat Mat Fac Low Hostile Shots Fired 533 | . 42 63 79 207 142 Missed 144 | . 15 18 19 70 22 Damage Taken 5292 | . 279 575 896 1442 2100 Core 1104 | . 23 145 232 110 594 Absorbed by Shields . | . . . . . . Redirected to Shielding 6 | . 3 3 . . . Core Remaining (%) 77 | 100 90 63 57 . . Volleys Fired 150 | . 33 37 35 33 12 Largest 3 | . 2 2 2 3 2 Hottest 160 | . 40 112 112 160 160 Shots Fired 300 | . 66 73 70 70 21 Gun 239 | . 66 73 70 30 . Cannon 61 | . . . . 40 21 Launcher . | . . . . . . Special . | . . . . . . Kinetic 159 | . 66 42 5 46 . Thermal 141 | . . 31 65 24 21 Explosive . | . . . . . . Electromagnetic . | . . . . . . Robot Hit Streak 11 | . 9 11 8 6 2 Robot Miss Streak 5 | . 5 5 2 5 2 Penetration Max 1 | . . . . 1 . Secondary Targets 1 | . 1 . . . . Max Gunslinging Chain 1 | . 1 . . . . Shots Hit Robots 183 | . 43 47 46 36 11 Core Hits 73 | . 16 21 20 9 7 Critical Kills . | . . . . . . Critical Parts Destroyed . | . . . . . . Critical Strikes 16 | . . 4 7 3 2 Burn 12 | . . 4 7 1 . Blast 2 | . . . . 2 . Sever 2 | . . . . . 2 Melee Attacks 5 | . . . . . 5 Impact . | . . . . . . Slashing 5 | . . . . . 5 Piercing . | . . . . . . Sneak Attacks . | . . . . . . Combat Hostiles . | . . . . . . Follow-up Attacks . | . . . . . . Damage Inflicted 3559 | . 568 714 838 1051 388 Guns 2408 | . 546 711 835 316 . Cannons 951 | . . . . 621 330 Explosions 114 | . . . . 114 . Melee 58 | . . . . . 58 Ramming 28 | . 22 3 3 . . Kinetic 1664 | . 546 318 89 711 . Thermal 1695 | . . 393 746 226 330 Explosive 114 | . . . . 114 . Electromagnetic . | . . . . . . Impact . | . . . . . . Slashing 58 | . . . . . 58 Piercing . | . . . . . . Highest Corruption 3 | . . . . 3 3 Average Corruption 3 | . . . . 3 3 Corruption Purged . | . . . . . . Corruption Blocked . | . . . . . . Effects 3 | . . . . 1 2 Matter Fused 2 | . . . . 1 1 Energy Discharges 1 | . . . . . 1 Overload Shots . | . . . . . . Overflow Damage 2 | . . . . . 2 Projectiles 2 | . . . . . 2 Explosions . | . . . . . . Melee . | . . . . . . Knockbacks 6 | . . . . 6 . Impact . | . . . . . . Kinetic 5 | . . . . 5 . Secondary 1 | . . . . 1 . Self-Inflicted Damage 75 | . . . . 75 . Shots 1 | . . . . 1 . Rammed 8 | . 5 1 . . 2 Targets Rammed 9 | . 5 1 1 . 2 Kicked 1 | . . . 1 . . Crushed . | . . . . . . Highest Temperature 613 | . 2 270 504 509 613 Average Temperature 160 | . 1 76 184 133 265 Received Heat Transfer 1773 | . 132 246 414 216 765 Effects 30 | . . 2 10 3 15 Shutdowns 1 | . . . 1 . . Energy Bleed 3 | . . . . 1 2 Interference 12 | . . 2 6 1 3 Matter Decay 2 | . . . 1 1 . Short Circuit 2 | . . . 2 . . Damage (minor) 1 | . . . . . 1 Damage (major) 9 | . . . . . 9 Siege Activations . | . . . . . . Robots Corrupted . | . . . . . . Combat Hostiles . | . . . . . . Parts Fried . | . . . . . . Impact Corruptions . | . . . . . . Robots Melted 1 | . . . . 1 . Combat Hostiles 1 | . . . . 1 . Parts Melted 7 | . . 4 2 1 . Heat Transferred 4476 | . . 1147 2146 533 650 Parts Sabotaged . | . . . . . . Parts Stolen . | . . . . . . Parts Stripped . | . . . . . . Power Chain Reactions . | . . . . . . Alert | -11 -10 -9 -8 -7 -7 ------- Run | Yrd Mat Mat Mat Fac Low Peak Influence 277 | . 115 272 277 228 . Initial 57 | . . 16 57 45 . Average 82 | . 34 123 112 74 . Maximum Alert Level 1 | . . 1 1 1 . Low Security (%) 92 | 100 100 81 94 92 . Level 1 7 | . . 18 5 7 . Level 2 . | . . . . . . Level 3 . | . . . . . . Level 4 . | . . . . . . Level 5 . | . . . . . . High Security . | . . . . . . Max Security . | . . . . . . Squads Dispatched 10 | . 2 2 1 5 . Investigation 3 | . 1 1 . 1 . Extermination 2 | . . . . 2 . Reinforcement 3 | . 1 1 1 . . Assault . | . . . . . . Garrison 2 | . . . . 2 . Intercept . | . . . . . . Searches Triggered . | . . . . . . Construction Impeded . | . . . . . . Haulers Reinforced . | . . . . . . Active Scanning Responses . | . . . . . . Cargo Convoy Interrupts . | . . . . . . Stealth | -11 -10 -9 -8 -7 -7 --------- Run | Yrd Mat Mat Mat Fac Low Distress Signals 7 | . 2 3 1 1 . Communications Jammed . | . . . . . . Distress Signals . | . . . . . . Times Spotted 79 | . 17 26 17 10 9 Peak Tracking Total 7 | . 4 5 7 3 6 Tactical Retreats 5 | . 3 1 . . 1 Traps | -11 -10 -9 -8 -7 -7 ------- Run | Yrd Mat Mat Mat Fac Low Traps Triggered 4 | . 2 1 . 1 . Indirectly . | . . . . . . Trap Hack Attempts . | . . . . . . Triggered . | . . . . . . Disarmed 6 | . . . 6 . . Reprogrammed . | . . . . . . Reused . | . . . . . . Traps Extracted . | . . . . . . Installed . | . . . . . . Triggered . | . . . . . . Machines | -11 -10 -9 -8 -7 -7 ---------- Run | Yrd Mat Mat Mat Fac Low Machines Disabled 1 | . . . . 1 . Max in Single Turn 1 | . . . . 1 . Machines Repaired . | . . . . . . Machines Dismantled 3 | . . . . 3 . Machines Sabotaged . | . . . . . . Overloaded Fab Kills . | . . . . . . Hacking | -11 -10 -9 -8 -7 -7 --------- Run | Yrd Mat Mat Mat Fac Low Machines Accessed 13 | . 3 1 6 3 . Terminals 11 | . 3 1 5 2 . Fabricators . | . . . . . . Repair Stations 2 | . . . 1 1 . Recycling Units . | . . . . . . Scanalyzers . | . . . . . . Garrison Access . | . . . . . . Total Hacks 33 | . 9 3 12 9 . Successful 21 | . 5 3 10 3 . Failed 12 | . 4 . 2 6 . Catastrophic 1 | . . . . 1 . Database Lockouts . | . . . . . . Manual . | . . . . . . Terminals 26 | . 9 3 9 5 . Fabricators . | . . . . . . Repair Stations 7 | . . . 3 4 . Recycling Units . | . . . . . . Scanalyzers . | . . . . . . Garrison Access . | . . . . . . Terminal Hacks 17 | . 5 3 7 2 . Record 1 | . 1 . . . . Emergency Access Points 1 | . . . 1 . . Alert Level 1 | . . 1 . . . Unreport Threat 1 | . 1 . . . . Locate Traps 1 | . . . . 1 . Disarm Traps 1 | . . . 1 . . Dispatch Records 1 | . 1 . . . . Transport Status 1 | . . . 1 . . Investigation Status 1 | . . . 1 . . Hauler Manifests 2 | . . 1 1 . . Zone Layout 6 | . 2 1 2 1 . Fabricator Hacks . | . . . . . . Repair Station Hacks 4 | . . . 3 1 . Scan Component 3 | . . . 2 1 . Repair 1 | . . . 1 . . Recycling Unit Hacks . | . . . . . . Scanalyzer . | . . . . . . Garrison Access Hacks . | . . . . . . Unauthorized Hacks . | . . . . . . Terminals . | . . . . . . Fabricators . | . . . . . . Repair Stations . | . . . . . . Recycling Units . | . . . . . . Scanalyzers . | . . . . . . Garrison Access . | . . . . . . Data Cores Recovered 1 | . . . 1 . . Used . | . . . . . . Hacking Detections 11 | . 3 1 4 3 . Full Trace Events 3 | . 1 . 1 1 . Feedback Events . | . . . . . . Feedback Blocked . | . . . . . . Robot Schematics Acquired . | . . . . . . Robots Built . | . . . . . . Authchips . | . . . . . . Time . | . . . . . . Total Robot Build Rating . | . . . . . . Part Schematics Acquired . | . . . . . . Parts Built . | . . . . . . Authchips . | . . . . . . Time . | . . . . . . Total Part Build Rating . | . . . . . . Parts Repaired 1 | . . . 1 . . Time 53 | . . . 53 . . Parts Recycled . | . . . . . . Recycled Matter . | . . . . . . Retrieved Matter . | . . . . . . Retrieved Components . | . . . . . . Parts Scanalyzed . | . . . . . . Part Schematics Acquired . | . . . . . . Parts Damaged . | . . . . . . Bothacking | -11 -10 -9 -8 -7 -7 ------------ Run | Yrd Mat Mat Mat Fac Low Used RIF Installer . | . . . . . . Robots Hacked . | . . . . . . Non-combat . | . . . . . . Combat . | . . . . . . Robot Hacks Applied . | . . . . . . Relay Couplers Released . | . . . . . . Fabnet Peak Effective % . | . . . . . . Robots Rewired . | . . . . . . Allies Hacked . | . . . . . . Hacks Repelled . | . . . . . . Allies | -11 -10 -9 -8 -7 -7 -------- Run | Yrd Mat Mat Mat Fac Low Total Allies . | . . . . . . Largest Group . | . . . . . . Highest-Rated Group . | . . . . . . Highest-Rated Ally . | . . . . . . Total Orders . | . . . . . . Ally Attacks . | . . . . . . Total Damage . | . . . . . . Kills . | . . . . . . Allies Corrupted . | . . . . . . Allies Melted . | . . . . . . Intel | -11 -10 -9 -8 -7 -7 ------- Run | Yrd Mat Mat Mat Fac Low Robot Analysis Total . | . . . . . . Derelict Logs Recovered . | . . . . . . Drone Launches . | . . . . . . Drone Recoveries . | . . . . . . Exploration | -11 -10 -9 -8 -7 -7 ------------- Run | Yrd Mat Mat Mat Fac Low Turns Passed 4607 | 77 1044 901 1049 1267 269 Spaces Moved 2604 | 54 568 446 713 700 123 Core 21 | 18 . . . . 3 Treads 1238 | 36 568 275 . 239 120 Legs 1345 | . . 171 713 461 . Wheels . | . . . . . . Hover . | . . . . . . Flight . | . . . . . . Fastest Speed 50 | 50 160 120 120 125 165 Average Speed 140 | 123 160 144 120 139 169 Slowest Speed 350 | 160 160 190 125 250 350 Overloaded Moves . | . . . . . . Propulsion Burnouts . | . . . . . . Robots Hopped . | . . . . . . Cave-ins Triggered . | . . . . . . Exploration Rate (%) 26 | 3 51 39 31 17 18 Regions Visited 5 Branch Regions 1 Pre-discovered Areas . | . . . . . . Known Exits Taken . | . . . . . . Unknown Exits Taken 5 | 1 1 1 1 1 . Scrap Searched . | . . . . . . Spaces Dug 8 | . . . . 8 . Terrain Destroyed 48 | . . . . 48 . Melee . | . . . . . . Projectile 14 | . . . . 14 . AOE 34 | . . . . 34 . Terrain Rammed . | . . . . . . Walls Destroyed . | . . . . . . Machines Disabled . | . . . . . . Actions | -11 -10 -9 -8 -7 -7 --------- Run | Yrd Mat Mat Mat Fac Low Total 3161 | 64 635 628 835 848 151 Wait 182 | . . 116 53 13 . Move 2599 | 53 567 445 712 699 123 Hop . | . . . . . . Pick Up 64 | 5 15 9 10 22 3 Fast Attach 10 | 1 1 5 3 . . Attach 25 | 5 2 2 3 10 3 Detach . | . . . . . . Swap 26 | . 5 3 7 11 . Drop 50 | . 7 10 11 19 3 Fire 150 | . 33 37 35 33 12 Melee 5 | . . . . . 5 Ram 2 | . . . . . 2 Kick 1 | . . . 1 . . Crush 6 | . 5 1 . . . Escape Stasis . | . . . . . . Rewire . | . . . . . . Trap . | . . . . . . Miscellaneous 41 | . . . . 41 . Route ------- -11/Scrapyard -10/Materials -9/Materials -8/Materials -7/Factory -7/Lower Caves History --------- Turn | Location | Event 32 | -11/Scrapyard | Discovered new exit (range 14) 78 | -11/Scrapyard | Entered Materials 311 | -10/Materials | Build established: Mutant 966 | -10/Materials | Discovered new exit (range 4) 1122 | -10/Materials | Entered another Materials area 1122 | -9/Materials | Evolved 2 slots: Propulsion x1, Utility x1 1923 | -9/Materials | Discovered new exit (range 15) 2023 | -9/Materials | Entered another Materials area 2023 | -8/Materials | Evolved 2 slots: Propulsion x1, Utility x1 2541 | -8/Materials | Repaired Broken Minigun 2919 | -8/Materials | Discovered new exit (range 16) 3072 | -8/Materials | Entered Factory 3072 | -7/Factory | Evolved 2 slots: Utility x1, Weapon x1 3379 | -7/Factory | Build established: Skirmisher 4171 | -7/Factory | Garrison activated, responded to threat 4319 | -7/Factory | Discovered new exit (range 10) 4339 | -7/Factory | Entered Lower Caves 4441 | -7/Lower Caves | Build established: Mutant 4543 | -7/Lower Caves | Attracted the attention of an 0b10 base 4591 | -7/Lower Caves | Core integrity fell below 50% 4605 | -7/Lower Caves | Core integrity fell below 20% 4608 | -7/Lower Caves | Destroyed by G-47 Trooper with Particle Gun Last Messages --------------- 04585_ Overheating: Plasma Cannon damaged (-3). 04585_ Overheating: Plasma Cannon damaged (-23). 04585_ Hrd. Medium Armor Plating destroyed. 04585_ Critical hit (Burn: +37). 04585_ Penetrated by Slug. 04585_ Com. Battery destroyed. 04586_ Plasma Cannon destroyed. 04588_ Chainsword destroyed. 04588_ Penetrated by Slug. 04590_ Overheating: System interference. 04590_ Machine Analyzer temporarily disabled. 04591_ Machine Analyzer destroyed. 04592_ Critical hit (Burn: +37). 04593_ Slug penetrates Wall. 04598_ Plasma Cannon destroyed. 04598_ Critical hit (Burn: +37). 04599_ Penetrated by Slug. 04605_ Overheating: Med. Storage Unit damaged (-3). 04606_ Chainsword destroyed. 04607_ Slammed into G-47 Trooper. Map ----- +----------------------------------------------------+ | ?????????????????????????????????????????????????? | | ?????????????????????????????????????????????????? | | ?????????????????????????????????????????????????? | | ?????????????????????????????????????????????????? | | ?????????????????????????????????????????????????? | | ?????????????????????????????????????????????????? | | ?????????????????????????????????????????????????? | | ?????????????????????????????????????????????????? | | ?????????????????????????????????????????????????? | | ?????????????????????????????????????????????????? | | ?????????????????????????????????????????????????? | | ??????????????????????#####??????#####???????????? | | ?????????????????????? ?????## ##???###???? | | ?????????????????????? ?????# #???# ##?? | | ?????????????????????? ?????? ##??# ### | | ??????????????????????? ??????# #???# | | ??????????????????????? ??????# ## #???# | | ??????????????????????? ?????## ## #??## | | ??????????????????????? ?????# ## #??# | | ??????????????????????## #????## #??# ## | | ??????????????????????? #????# #???#### #? | | ??????????????????????? $#?????# #??????# #? | | ??????????????########## #?????### #??????# #? | | ?????????????#"""" """# #???##### #??????# #? | | ?????????????#""T" # #?### ##?????# #? | | ?????????????# % #g@### ####### #? | | ?????????????+ # ## #? | | ?????????????#" # g# #? | | ?????????????#" Y[gs ### #######? | | ?????????????#" " #= ### ####??????? | | ?????????????#" "[[# #?????????? | | ?????????????#" ?"[[# ## #????????? | | ?????????????######?#### #####" ## #???????? | | ?????????????????????? ????# #### ##???????? | | ????????????????????? $ ?? ####???##????????? | | ????????????????????## ##### ?????????????????? | | ?????????????????????## ????## ?????????????????? | | ??????????????????????# ?????## ?????????????????? | | ??????????????????????# ?????? ??????????????????? | | ??????????????????????# ?????? ??????????????????? | | ?????????????????????? ?????????????????????????? | | ?????????????????????? ?????????????????????????? | | ?????????????????????? ?????????????????????????? | | ?????????????????????? ??????????????????????????? | | ?????????????????????? ??????????????????????????? | | ?????????????????????? ??????????????????????????? | | ?????????????????????????????????????????????????? | | ?????????????????????????????????????????????????? | | ?????????????????????????????????????????????????? | | ?????????????????????????????????????????????????? | +----------------------------------------------------+ Best States ------------- Heat Dissipation 34 Energy Generation 14 Energy Capacity 480 Matter Stores 300 Matter Capacity 300 Sight Range 16 Robot Scan Range 15 Terrain Scan Density 10 Armor Coverage 450 Utility Shielding 33 Evasion (%) 55 Recoil Reduction 4 Authchip Count 4 Item Schematics ----------------- None Robot Schematics ------------------ None Fabricated ------------ Nothing Alien Tech Used ----------------- None Achievements -------------- None Challenges ------------ None Game ------ Seed DroneDamperTriangulator Manual? 0 Play Time 00:49:37 Cumulative 38.0 hours Start 2024.07.09 @ 11:04:17 End 2024.07.09 @ 12:22:18 Sessions 1 Manual Loads 0 Difficulty Rogue Special Mode None Game No. 110 Rogue 110 Adventurer 0 Explorer 0 Win Type - Total 0 Types 0/0/0/0/0/0/0/0/0 Lore% 18 Gallery% 35 Achievement% 23 Wizard Run 0 Options --------- Layout 0 ASCII 0 Keyboard 0 Movement Arrows Keybinds 0 Fullscreen 1 Font 12/Smallcaps Map View 38x28 Zoom Use 100% Tactical HUD 1 Map Filters NONE Filters NONE Steam SD RUN: 04789f29-4de1-4e24-ab3c-dada409e7136